fUST/lending_fUST_20240501
["ID","MTS","AMOUNT","RATE_DAILY","PERIOD"]
[325175734,1714548657563,-500.0,0.00063013,120]
[325175735,1714548657572,-500.0,0.00063013,120]
[325175736,1714548657582,-500.0,0.00063013,120]
[325175737,1714548657592,-500.0,0.00063013,120]
[325175738,1714548657601,-500.0,0.00063013,120]
[325175739,1714548657610,-9517.8,0.00063013,120]
[325175740,1714548657620,-500.0,0.00063013,120]
[325175741,1714548657629,-500.0,0.00063013,120]
[325175742,1714548657639,-500.0,0.00063013,120]
[325175743,1714548657649,-500.0,0.00063013,120]
[325175744,1714548657664,-500.0,0.00063013,120]
[325175745,1714548657674,-500.0,0.00063013,120]
[325175746,1714548657684,-500.0,0.00063013,120]
[325175747,1714548657694,-1245.59,0.00063013,120]
[325175748,1714548657704,-500.0,0.00063013,120]
[325175749,1714548657713,-818.81,0.00063013,21]
[325175750,1714548657723,-3687.26,0.00063013,120]
[325175751,1714548657736,-500.0,0.00063013,120]
[325175752,1714548657745,-300.0,0.00063013,2]
[325175753,1714548657755,-500.0,0.00063013,120]
[325175755,1714548657764,-460.0336781,0.00063013,120]
[325175757,1714548657773,-500.0,0.00063013,120]
[325175759,1714548657782,-500.0,0.00063013,120]
[325175761,1714548657791,-500.0,0.00063013,120]
[325175763,1714548657800,-500.0,0.00063013,120]
[325175764,1714548657810,-500.0,0.00063013,120]
[325175766,1714548657820,-500.0,0.00063013,120]
[325175768,1714548657829,-6028.16,0.00063013,120]
[325175770,1714548657838,-500.0,0.00063013,120]
[325175771,1714548657847,-500.0,0.00063013,120]
[325175772,1714548657857,-501.86196545,0.00063013,3]
[325175774,1714548657866,-2384.83,0.00063013,120]
[325175775,1714548657875,-500.0,0.00063013,120]
[325175776,1714548657885,-500.0,0.00063013,120]
[325175777,1714548657895,-618.34062647,0.00063013,120]
[325175778,1714548657906,-18822.58,0.00063013,120]
[325175779,1714548657916,-297.99337162,0.00063013,120]
[325175780,1714548657926,-500.0,0.00063013,120]
[325175781,1714548657935,-2102.18,0.00063013,120]
[325175782,1714548657945,-500.0,0.00063013,120]
[325175783,1714548657955,-1875.02,0.00063287,120]
[325175784,1714548657969,-151.0,0.00063863,120]
[325175785,1714548657978,-739572.9713,0.00064,30]
[325175786,1714548657996,-1875.02,0.00064109,120]
[325175787,1714548658007,-1241.12019144,0.00064146,120]
[325175788,1714548658016,-2156.19216218,0.00064146,120]
[325175789,1714548658026,-507.13948,0.00064683,2]
[325175790,1714548658035,-1875.02,0.00064931,120]
[325175791,1714548658045,-500.0,0.00065752,120]
[325175792,1714548658055,-500.0,0.00065753,120]
[325175793,1714548658064,-158.05704703,0.00065753,120]
[325175794,1714548658074,-511.01832035,0.00065753,120]
[325175795,1714548658083,-1081.66,0.00065753,120]
[325175796,1714548658092,-993.67,0.00065753,120]
[325175797,1714548658102,-539.57912611,0.00065753,120]
[325175798,1714548658111,-805.8,0.00065753,120]
[325175799,1714548658121,-815.88,0.00065753,120]
[325175800,1714548658130,-500.0,0.00065753,120]
[325175801,1714548658139,-509.78,0.00065753,120]
[325175802,1714548658149,-500.0,0.00065753,120]
[325175803,1714548658159,-500.0,0.00065753,120]
[325175804,1714548658168,-500.0,0.00065753,120]
[325175805,1714548658177,-1425.14,0.00065753,120]
[325175806,1714548658187,-792.54,0.00065753,120]
[325175807,1714548658262,-500.0,0.00065753,120]
[325175808,1714548658271,-500.0,0.00065753,120]
[325175809,1714548658281,-500.0,0.00065753,120]
[325175810,1714548658291,-500.0,0.00065753,120]
[325175811,1714548658300,-500.0,0.00065753,120]
[325175812,1714548658309,-500.0,0.00065753,120]
[325175813,1714548658319,-500.0,0.00065753,7]
[325175814,1714548658328,-500.0,0.00065753,120]
[325175815,1714548658337,-500.0,0.00065753,120]
[325175816,1714548658346,-372.66724936,0.00065753,120]
[325175817,1714548658356,-500.0,0.00065753,120]
[325175818,1714548658365,-500.0,0.00065753,120]
[325175819,1714548658375,-369.01831701,0.00065753,120]
[325175820,1714548658384,-500.0,0.00065753,120]
[325175821,1714548658393,-500.0,0.00065753,120]
[325175823,1714548658403,-500.0,0.00065753,120]
[325175825,1714548658412,-500.0,0.00065753,120]
[325175826,1714548658422,-867.57,0.00065753,120]
[325175827,1714548658431,-500.0,0.00065753,120]
[325175828,1714548658441,-504.0284564,0.00065753,120]
[325175830,1714548658450,-301.49159764,0.00065753,120]
[325175849,1714548658620,-202.30799583,0.00065753,120]
[325175852,1714548658636,-277.72113801,0.00065753,120]
[325175855,1714548658659,-226.171932,0.00065753,120]
[325175858,1714548658677,-500.0,0.00065753,120]
[325175860,1714548658698,-280.77,0.00065753,120]
[325175861,1714548658718,-507.04897982,0.00065753,120]
[325175862,1714548658736,-227.23908818,0.00065753,120]
[325175863,1714548658761,-272.76091182,0.00065753,120]
[325175864,1714548658775,-500.0,0.00065753,120]
[325175865,1714548658793,-500.0,0.00065753,120]
[325175866,1714548658811,-500.0,0.00065753,120]
[325175867,1714548658830,-500.0,0.00065753,120]
[325175868,1714548658842,-500.0,0.00065753,120]
[325175869,1714548658859,-500.0,0.00065753,120]
[325175870,1714548658874,-500.0,0.00065753,120]
[325175871,1714548658890,-500.0,0.00065753,120]
[325175872,1714548658903,-500.0,0.00065753,120]
[325175873,1714548658918,-500.0,0.00065753,120]
[325175874,1714548658932,-500.0,0.00065753,120]
[325175875,1714548658947,-500.0,0.00065753,120]
[325175876,1714548658960,-500.0,0.00065753,120]
[325175877,1714548658975,-500.0,0.00065753,120]
[325175878,1714548658994,-500.0,0.00065753,120]
[325175879,1714548659009,-500.0,0.00065753,120]
[325175880,1714548659024,-500.0,0.00065753,120]
[325175881,1714548659039,-500.0,0.00065753,120]
[325175882,1714548659054,-500.0,0.00065753,120]
[325175883,1714548659070,-500.0,0.00065753,120]
[325175884,1714548659084,-500.0,0.00065753,2]
[325175885,1714548659099,-500.0,0.00065753,120]
[325175886,1714548659114,-500.0,0.00065753,120]
[325175887,1714548659128,-500.0,0.00065753,120]
[325175888,1714548659142,-500.0,0.00065753,120]
[325175889,1714548659157,-500.0,0.00065753,120]
[325175890,1714548659166,-500.0,0.00065753,120]
[325175891,1714548659176,-500.0,0.00065753,120]
[325175892,1714548659185,-500.0,0.00065753,120]
[325175893,1714548659194,-500.0,0.00065753,120]
[325175894,1714548659203,-1786.81,0.00065753,120]
[325175895,1714548659213,-500.0,0.00065753,120]
[325175896,1714548659223,-500.0,0.00065753,120]
[325175897,1714548659232,-500.96238832,0.00065753,120]
[325175898,1714548659246,-500.99325245,0.00065753,120]
[325175899,1714548659257,-1698.93,0.00065753,120]
[325175900,1714548659266,-199.69750738,0.00065753,120]
[325175901,1714548659277,-500.0,0.00065753,120]
[325175902,1714548659289,-500.0,0.00065753,120]
[325175903,1714548659298,-500.0,0.00065753,120]
[325175904,1714548659308,-500.77543528,0.00065753,120]
[325175905,1714548659318,-500.0,0.00065753,120]
[325175906,1714548659327,-500.0,0.00065753,120]
[325175907,1714548659337,-500.0,0.00065753,120]
[325175908,1714548659346,-500.0,0.00065753,120]
[325175909,1714548659535,-504.13452405,0.00065753,120]
[325175910,1714548659554,-500.0,0.00065753,120]
[325175911,1714548659564,-501.59012861,0.00065753,120]
[325175912,1714548659574,-500.0,0.00065753,120]
[325175913,1714548659583,-731.92,0.00065753,120]
[325175914,1714548659593,-500.0,0.00065753,120]
[325175915,1714548659602,-500.0,0.00065753,120]
[325175916,1714548659611,-500.0,0.00065753,120]
[325175917,1714548659621,-500.0,0.00065753,120]
[325175918,1714548659630,-500.0,0.00065753,120]
[325175919,1714548659639,-500.0,0.00065753,120]
[325175920,1714548659649,-500.0,0.00065753,120]
[325175921,1714548659658,-500.0,0.00065753,120]
[325175922,1714548659668,-500.0,0.00065753,120]
[325175923,1714548659677,-3165.89,0.00065753,2]
[325175924,1714548659686,-537.01,0.00065753,120]
[325175925,1714548659696,-500.0,0.00065753,120]
[325175926,1714548659706,-500.0,0.00065753,120]
[325175927,1714548659716,-500.0,0.00065753,120]
[325175928,1714548659725,-1479.46,0.00065753,120]
[325175929,1714548659740,-500.0,0.00065753,120]
[325175930,1714548659749,-2952.49,0.00065753,120]
[325175931,1714548659759,-500.0,0.00065753,120]
[325175932,1714548659769,-500.0,0.00065753,120]
[325175933,1714548659778,-552.37410288,0.00065753,120]
[325175934,1714548659788,-500.0,0.00065753,120]
[325175935,1714548659798,-500.0,0.00065753,120]
[325175936,1714548659808,-501.66808483,0.00065753,120]
[325175937,1714548659818,-500.0,0.00065753,120]
[325175938,1714548659828,-1301.34,0.00065753,120]
[325175939,1714548659838,-361.40890213,0.00065753,120]
[325175940,1714548659848,-579.45,0.00065753,120]
[325175941,1714548659858,-622.98,0.00065753,120]
[325175942,1714548659868,-500.0,0.00065753,60]
[325175943,1714548659878,-500.0,0.00065753,120]
[325175944,1714548659888,-532.58994668,0.00065753,120]
[325175945,1714548659898,-500.0,0.00065753,120]
[325175946,1714548659907,-235.88795641,0.00065753,120]
[325175947,1714548659917,-500.0,0.00065753,120]
[325175948,1714548659926,-500.0,0.00065753,120]
[325175949,1714548659936,-500.0,0.00065753,120]
[325175950,1714548659945,-674.25,0.00065753,120]
[325175951,1714548659955,-500.0,0.00065753,120]
[325175952,1714548659969,-500.0,0.00065753,120]
[325175953,1714548659978,-500.0,0.00065753,120]
[325175954,1714548659992,-500.0,0.00065753,120]
[325175955,1714548660002,-585.26,0.00065753,120]
[325175956,1714548660012,-500.0,0.00065753,120]
[325175957,1714548660021,-500.0,0.00065753,120]
[325175958,1714548660031,-500.0,0.00065753,120]
[325175959,1714548660042,-323.46437252,0.00065753,120]
[325175961,1714548660051,-500.0,0.00065753,120]
[325175963,1714548660062,-506.21028744,0.00065753,120]
[325175965,1714548660071,-500.0,0.00065753,120]
[325175967,1714548660080,-500.0,0.00065753,120]
[325175968,1714548660090,-500.0,0.00065753,120]
[325175970,1714548660099,-278.63176279,0.00065753,120]
[325175972,1714548660109,-2045.55,0.00065753,120]
[325175973,1714548660119,-500.0,0.00065753,120]
[325175974,1714548660128,-500.0,0.00065753,120]
[325175975,1714548660137,-506.19,0.00065753,120]
[325175976,1714548660147,-500.0,0.00065753,120]
[325175978,1714548660156,-500.0,0.00065753,120]
[325175979,1714548660166,-500.0,0.00065753,120]
[325175981,1714548660175,-500.0,0.00065753,120]
[325175983,1714548660184,-500.0,0.00065753,120]
[325175984,1714548660193,-500.0,0.00065753,120]
[325175985,1714548660202,-585.83,0.00065753,120]
[325175987,1714548660212,-500.0,0.00065753,120]
[325175989,1714548660221,-1038.85,0.00065753,120]
[325175991,1714548660231,-500.0,0.00065753,120]
[325175993,1714548660244,-500.0,0.00065753,120]
[325175995,1714548660253,-500.0,0.00065753,120]
[325175996,1714548660263,-1947.99,0.00065753,120]
[325175997,1714548660272,-500.0,0.00065753,120]
[325175998,1714548660282,-500.0,0.00065753,120]
[325175999,1714548660292,-500.0,0.00065753,120]
[325176000,1714548660302,-500.0,0.00065753,120]
[325176001,1714548660312,-500.0,0.00065753,120]
[325176002,1714548660321,-500.0,0.00065753,120]
[325176003,1714548660331,-500.0,0.00065753,120]
[325176004,1714548660341,-500.0,0.00065753,120]
[325176005,1714548660350,-500.0,0.00065753,120]
[325176006,1714548660360,-25152.44,0.00065753,120]
[325176007,1714548660370,-272.40485161,0.00065753,120]
[325176008,1714548660379,-500.0,0.00065753,120]
[325176009,1714548660389,-500.0,0.00065753,120]
[325176010,1714548660398,-13490.46,0.00065753,120]
[325176011,1714548660408,-501.2498832,0.00065753,120]
[325176012,1714548660418,-956.85,0.00065753,120]
[325176013,1714548660427,-500.0,0.00065753,120]
[325176014,1714548660437,-501.58414585,0.00065753,120]
[325176015,1714548660447,-2083.37,0.00065753,120]
[325176016,1714548660457,-648.48621575,0.00065753,120]
[325176017,1714548660467,-495.22664148,0.00065753,120]
[325176018,1714548660477,-500.0,0.00065753,120]
[325176019,1714548660491,-2107.87,0.00065753,120]
[325176020,1714548660501,-500.0,0.00065753,120]
[325176021,1714548660511,-500.0,0.00065753,120]
[325176022,1714548660520,-3805.31,0.00065753,120]
[325176023,1714548660530,-500.0,0.00065753,120]
[325176024,1714548660540,-500.0,0.00065753,120]
[325176025,1714548660549,-501.05146108,0.00065753,120]
[325176026,1714548660559,-500.0,0.00065753,120]
[325176027,1714548660570,-500.0,0.00065753,120]
[325176028,1714548660579,-500.0,0.00065753,120]
[325176029,1714548660589,-500.0,0.00065753,120]
[325176030,1714548660599,-523.86,0.00065753,120]
[325176031,1714548660608,-500.0,0.00065753,120]
[325176032,1714548660617,-500.0,0.00065753,120]
[325176033,1714548660627,-6069.63,0.00065753,2]
[325176034,1714548660637,-500.0,0.00065753,120]
[325176035,1714548660647,-500.0,0.00065753,120]
[325176036,1714548660657,-500.0,0.00065753,120]
[325176037,1714548660667,-500.0,0.00065753,120]
[325176038,1714548660676,-1875.02,0.00065753,120]
[325176039,1714548660686,-500.0,0.00065753,120]
[325176040,1714548660696,-2266.06,0.00065753,120]
[325176041,1714548660706,-500.0,0.00065753,120]
[325176042,1714548660716,-500.0,0.00065753,120]
[325176043,1714548660726,-500.0,0.00065753,120]
[325176044,1714548660739,-500.0,0.00065753,120]
[325176045,1714548660749,-501.52643414,0.00065753,120]
[325176046,1714548660759,-500.0,0.00065753,120]
[325176047,1714548660769,-500.0,0.00065753,120]
[325176048,1714548660779,-589.1,0.00065753,120]
[325176049,1714548660789,-500.0,0.00065753,120]
[325176050,1714548660799,-500.0,0.00065753,120]
[325176051,1714548660809,-500.0,0.00065753,120]
[325176052,1714548660818,-500.0,0.00065753,120]
[325176053,1714548660828,-532.33988869,0.00065753,120]
[325176054,1714548660838,-500.0,0.00065753,120]
[325176055,1714548660848,-514.66387567,0.00065753,120]
[325176056,1714548660858,-500.0,0.00065753,120]
[325176057,1714548660868,-500.0,0.00065753,120]
[325176058,1714548660878,-500.0,0.00065753,120]
[325176059,1714548660888,-500.0,0.00065753,120]
[325176060,1714548660898,-500.0,0.00065753,120]
[325176061,1714548660907,-579.58707437,0.00065753,120]
[325176062,1714548660916,-500.0,0.00065753,120]
[325176063,1714548660926,-8649.1,0.00065753,120]
[325176064,1714548660936,-500.0,0.00065753,120]
[325176065,1714548660946,-500.0,0.00065753,120]
[325176066,1714548660955,-500.0,0.00065753,120]
[325176067,1714548660965,-500.0,0.00065753,120]
[325176068,1714548660974,-500.0,0.00065753,120]
[325176069,1714548660987,-815.38,0.00065753,120]
[325176070,1714548660998,-2648.26744756,0.00065753,120]
[325176071,1714548661136,-475.09554107,0.00054795,120]
[325176072,1714548661146,-395.22357336,0.00054795,120]
[325176073,1714548661265,-203.8574549,0.00053883,2]
[325176074,1714548661275,-79.87196771,0.00054795,120]
[325176075,1714548661285,-475.09554107,0.00054795,120]
[325176076,1714548661295,-475.09554107,0.00054795,120]
[325176077,1714548661306,-475.09554107,0.00054795,120]
[325176078,1714548661315,-475.09554107,0.00054795,120]
[325176079,1714548661325,-475.09554107,0.00054795,120]
[325176080,1714548661334,-501.34792112,0.00057534,120]
[325176081,1714548661344,-500.0,0.00057534,120]
[325176082,1714548661354,-500.0,0.00057534,120]
[325176083,1714548661364,-500.0,0.00057534,120]
[325176084,1714548661373,-500.0,0.00057534,120]
[325176085,1714548661384,-500.0,0.00060273,120]
[325176086,1714548661394,-397.13468559,0.00060273,120]
[325176087,1714548661403,-500.0,0.00060273,120]
[325176088,1714548661413,-510.07447951,0.00060273,120]
[325176089,1714548661423,-500.0,0.00063013,120]
[325176090,1714548661433,-500.0,0.00063013,120]
[325176091,1714548661443,-500.0,0.00063013,120]
[325176092,1714548661453,-1108.85255244,0.00065753,120]
[325176093,1714548661463,-500.0,0.00065753,120]
[325176094,1714548661474,-223.60349342,0.00065753,120]
[325176095,1714548661487,-501.24470327,0.00065753,120]
[325176096,1714548661496,-500.0,0.00065753,120]
[325176097,1714548661506,-500.0,0.00065753,120]
[325176098,1714548661516,-887.21,0.00065753,2]
[325176099,1714548661525,-500.0,0.00065753,120]
[325176100,1714548661534,-500.0,0.00065753,120]
[325176101,1714548661544,-892.02,0.00065753,120]
[325176102,1714548661554,-1519.95,0.00065753,120]
[325176103,1714548661564,-500.0,0.00065753,120]
[325176104,1714548661573,-501.53776556,0.00065753,120]
[325176105,1714548661583,-532.28255063,0.00065753,120]
[325176106,1714548661592,-500.0,0.00065753,120]
[325176107,1714548661602,-500.0,0.00065753,120]
[325176108,1714548661611,-500.0,0.00065753,120]
[325176109,1714548661620,-4690.05,0.00065753,120]
[325176110,1714548661630,-500.0,0.00065753,120]
[325176111,1714548661640,-502.06423291,0.00065753,120]
[325176112,1714548661649,-500.0,0.00065753,120]
[325176113,1714548661659,-500.0,0.00065753,120]
[325176114,1714548661668,-1985.45,0.00065753,120]
[325176115,1714548661677,-500.0,0.00065753,120]
[325176116,1714548661687,-500.0,0.00065753,120]
[325176117,1714548661697,-500.0,0.00065753,120]
[325176118,1714548661707,-500.0,0.00065753,120]
[325176119,1714548661716,-500.0,0.00065753,120]
[325176120,1714548661725,-500.0,0.00065753,120]
[325176121,1714548661738,-512.54141634,0.00065753,120]
[325176122,1714548661747,-500.0,0.00065753,120]
[325176123,1714548661757,-500.0,0.00065753,120]
[325176124,1714548661766,-500.0,0.00065753,60]
[325176125,1714548661775,-500.0,0.00065753,120]
[325176126,1714548661785,-474.04326759,0.00065753,120]
[325176127,1714548661794,-500.0,0.00065753,120]
[325176128,1714548661804,-500.0,0.00065753,120]
[325176129,1714548661813,-500.0,0.00065753,120]
[325176130,1714548661824,-672.61,0.00065753,120]
[325176131,1714548661834,-500.60700252,0.00065753,120]
[325176132,1714548661844,-500.0,0.00065753,120]
[325176133,1714548661853,-501.22007602,0.00065753,120]
[325176134,1714548661863,-500.0,0.00065753,120]
[325176135,1714548661872,-500.0,0.00065753,120]
[325176136,1714548661883,-500.0,0.00065753,120]
[325176137,1714548661893,-500.0,0.00065753,120]
[325176138,1714548661903,-500.0,0.00065753,120]
[325176139,1714548661913,-9517.8,0.00065753,120]
[325176140,1714548661923,-500.0,0.00065753,120]
[325176141,1714548661933,-500.0,0.00065753,120]
[325176142,1714548661943,-500.0,0.00065753,120]
[325176143,1714548661953,-500.0,0.00065753,120]
[325176144,1714548661966,-500.0,0.00065753,120]
[325176145,1714548661976,-500.0,0.00065753,120]
[325176146,1714548661989,-500.0,0.00065753,120]
[325176147,1714548661999,-500.0,0.00065753,120]
[325176148,1714548662010,-1245.59,0.00065753,120]
[325176149,1714548662019,-818.81,0.00065753,21]
[325176150,1714548662029,-3687.26,0.00065753,120]
[325176151,1714548662038,-500.0,0.00065753,120]
[325176152,1714548662049,-296.01220313,0.00065753,2]
[325176153,1714548662058,-500.0,0.00065753,120]
[325176154,1714548662068,-500.0,0.00065753,120]
[325176155,1714548662077,-500.0,0.00065753,120]
[325176156,1714548662087,-500.0,0.00065753,120]
[325176157,1714548662096,-500.0,0.00065753,120]
[325176158,1714548662106,-500.0,0.00065753,120]
[325176159,1714548662115,-500.0,0.00065753,120]
[325176160,1714548662125,-6028.16,0.00065753,120]
[325176161,1714548662135,-500.0,0.00065753,120]
[325176162,1714548662144,-500.0,0.00065753,120]
[325176163,1714548662154,-2384.83,0.00065753,120]
[325176164,1714548662164,-500.0,0.00065753,120]
[325176165,1714548662174,-500.0,0.00065753,120]
[325176166,1714548662183,-18822.58,0.00065753,120]
[325176167,1714548662193,-500.0,0.00065753,120]
[325176168,1714548662202,-2102.18,0.00065753,120]
[325176169,1714548662213,-500.0,0.00065753,120]
[325176170,1714548662223,-500.0,0.00065753,120]
[325176171,1714548662232,-501.79594019,0.00065753,120]
[325176172,1714548662245,-500.0,0.00065753,120]
[325176173,1714548662256,-151.0,0.00066219,120]
[325176174,1714548662265,-507.13949,0.00066542,2]
[325176175,1714548662275,-1875.02,0.00066575,120]
[325176176,1714548662285,-159.98080961,0.0006682,120]
[325176177,1714548662294,-33789.23494298,0.000669,120]
[325176178,1714548662304,-153.79057045,0.00067215,120]
[325176179,1714548662314,-161.364383,0.00067288,2]
[325176180,1714548662323,-169.351643,0.00067288,2]
[325176181,1714548662333,-1875.02,0.00067397,120]
[325176182,1714548662343,-1875.02,0.00068219,120]
[325176183,1714548662353,-507.13949,0.000684,2]
[325176184,1714548662363,-568.3693775,0.00068491,120]
[325176185,1714548662372,-163.43298754,0.00068492,7]
[325176186,1714548662387,-500.0,0.00068493,120]
[325176187,1714548662396,-1081.66,0.00068493,120]
[325176188,1714548662406,-993.67,0.00068493,120]
[325176189,1714548662416,-805.8,0.00068493,120]
[325176190,1714548662425,-815.88,0.00068493,120]
[325176191,1714548662538,-500.0,0.00068493,120]
[325176192,1714548662549,-247.79,0.00068493,120]
[325176193,1714548662558,-1425.14,0.00068493,120]
[325176194,1714548662567,-500.0,0.00068493,120]
[325176195,1714548662576,-500.0,0.00068493,120]
[325176196,1714548662586,-513.73,0.00068493,120]
[325176197,1714548662595,-570.33634232,0.00068493,120]
[325176198,1714548662605,-500.0,0.00068493,7]
[325176199,1714548662615,-500.0,0.00068493,120]
[325176200,1714548662624,-500.0,0.00068493,120]
[325176201,1714548662634,-500.0,0.00068493,120]
[325176202,1714548662643,-205.8233674,0.00068493,120]
[325176203,1714548662653,-500.0,0.00068493,120]
[325176204,1714548662662,-867.57,0.00068493,120]
[325176205,1714548662671,-395.34901925,0.00068493,120]
[325176206,1714548662680,-1028.4,0.00068493,120]
[325176207,1714548662689,-500.0,0.00068493,120]
[325176208,1714548662698,-500.0,0.00068493,120]
[325176209,1714548662707,-500.0,0.00068493,120]
[325176210,1714548662717,-500.0,0.00068493,120]
[325176211,1714548662727,-500.0,0.00068493,120]
[325176212,1714548662739,-500.0,0.00068493,120]
[325176213,1714548662748,-500.0,0.00068493,120]
[325176214,1714548662757,-500.0,0.00068493,120]
[325176215,1714548662767,-501.25378823,0.00068493,120]
[325176216,1714548662777,-500.0,0.00068493,120]
[325176217,1714548662787,-500.0,0.00068493,120]
[325176218,1714548662796,-500.0,0.00068493,120]
[325176219,1714548662805,-500.0,0.00068493,120]
[325176220,1714548662814,-500.0,0.00068493,120]
[325176221,1714548662824,-500.0,0.00068493,120]
[325176222,1714548662833,-500.0,0.00068493,120]
[325176223,1714548662842,-205.44268978,0.00068493,120]
[325176224,1714548662852,-500.0,0.00068493,120]
[325176225,1714548662861,-500.0,0.00068493,120]
[325176226,1714548662870,-500.0,0.00068493,120]
[325176227,1714548662878,-500.0,0.00068493,120]
[325176228,1714548662888,-500.0,0.00068493,2]
[325176229,1714548662897,-500.0,0.00068493,120]
[325176230,1714548662907,-500.0,0.00068493,120]
[325176231,1714548662917,-500.0,0.00068493,120]
[325176232,1714548662926,-500.0,0.00068493,120]
[325176233,1714548662936,-500.0,0.00068493,120]
[325176234,1714548662945,-500.0,0.00068493,120]
[325176235,1714548662955,-500.0,0.00068493,120]
[325176236,1714548662965,-500.0,0.00068493,120]
[325176237,1714548662974,-500.0,0.00068493,120]
[325176238,1714548662987,-1786.81,0.00068493,120]
[325176239,1714548662996,-500.0,0.00068493,120]
[325176240,1714548663005,-500.0,0.00068493,120]
[325176241,1714548663014,-1698.93,0.00068493,120]
[325176242,1714548663023,-500.0,0.00068493,120]
[325176243,1714548663033,-500.0,0.00068493,120]
[325176244,1714548663042,-500.0,0.00068493,120]
[325176245,1714548663052,-500.0,0.00068493,120]
[325176246,1714548663062,-500.0,0.00068493,120]
[325176247,1714548663072,-501.54878924,0.00068493,120]
[325176248,1714548663081,-500.0,0.00068493,120]
[325176249,1714548663091,-500.0,0.00068493,120]
[325176250,1714548663101,-500.0,0.00068493,120]
[325176251,1714548663110,-731.92,0.00068493,120]
[325176252,1714548663120,-500.0,0.00068493,120]
[325176253,1714548663129,-500.0,0.00068493,120]
[325176254,1714548663139,-500.0,0.00068493,120]
[325176255,1714548663148,-500.0,0.00068493,120]
[325176256,1714548663158,-500.0,0.00068493,120]
[325176257,1714548663167,-500.0,0.00068493,120]
[325176258,1714548663177,-500.0,0.00068493,120]
[325176259,1714548663187,-500.0,0.00068493,120]
[325176260,1714548663196,-500.0,0.00068493,120]
[325176261,1714548663206,-3165.89,0.00068493,2]
[325176262,1714548663215,-537.01,0.00068493,120]
[325176263,1714548663225,-500.0,0.00068493,120]
[325176264,1714548663238,-500.0,0.00068493,120]
[325176265,1714548663248,-500.0,0.00068493,120]
[325176266,1714548663258,-1479.46,0.00068493,120]
[325176267,1714548663267,-500.0,0.00068493,120]
[325176268,1714548663277,-2952.49,0.00068493,120]
[325176269,1714548663287,-502.75929577,0.00068493,120]
[325176270,1714548663298,-500.0,0.00068493,120]
[325176271,1714548663308,-500.0,0.00068493,120]
[325176272,1714548663318,-500.0,0.00068493,120]
[325176273,1714548663327,-500.0,0.00068493,120]
[325176274,1714548663336,-1301.34,0.00068493,120]
[325176275,1714548663346,-579.45,0.00068493,120]
[325176276,1714548663355,-622.98,0.00068493,120]
[325176277,1714548663365,-500.0,0.00068493,60]
[325176278,1714548663374,-500.0,0.00068493,120]
[325176279,1714548663383,-500.0,0.00068493,120]
[325176280,1714548663393,-500.0,0.00068493,120]
[325176281,1714548663403,-500.0,0.00068493,120]
[325176282,1714548663412,-500.0,0.00068493,120]
[325176283,1714548663422,-674.25,0.00068493,120]
[325176284,1714548663432,-500.0,0.00068493,120]